[Event "Lune-dì-rapid!"]
[Site "Chess.com"]
[Date "2020.04.13"]
[Round "3"]
[White "ottovolante"]
[Black "sirmale49"]
[Result "1/2-1/2"]
[WhiteElo "998"]
[BlackElo "1381"]
[TimeControl "720+3"]
[EndTime "6:50:57 PDT"]
[Termination "Patta d'accordo"]

1. e4 {[%clk 0:12:02.9]} 1... d5 {[%clk 0:11:54.5]} 2. e5 {[%clk 0:12:02.4]}
2... e6 {[%clk 0:11:54]} 3. d4 {[%clk 0:12:03.9]} 3... c5 {[%clk 0:11:48.9]} 4.
Nf3 {[%clk 0:12:00.8]} 4... Nc6 {[%clk 0:11:47.6]} 5. Bb5 {[%clk 0:11:57.1]}
5... Bd7 {[%clk 0:11:47.7]} 6. Bxc6 {[%clk 0:11:56.8]} 6... Bxc6 {[%clk
0:11:48.3]} 7. Nc3 {[%clk 0:11:57.8]} 7... Ne7 {[%clk 0:11:38.8]} 8. Bg5 {[%clk
0:11:54]} 8... h6 {[%clk 0:11:38.2]} 9. Bxe7 {[%clk 0:11:54.5]} 9... Bxe7 {[%clk
0:11:39.4]} 10. a4 {[%clk 0:11:54.3]} 10... c4 {[%clk 0:11:37.9]} 11. Qe2 {[%clk
0:10:57.2]} 11... Bd7 {[%clk 0:11:28.6]} 12. h3 {[%clk 0:10:23.7]} 12... Bb4
{[%clk 0:11:24.2]} 13. O-O {[%clk 0:10:20.6]} 13... a6 {[%clk 0:10:59.6]} 14.
Nd2 {[%clk 0:10:15.3]} 14... Qa5 {[%clk 0:10:43.2]} 15. Qe3 {[%clk 0:10:10.7]}
15... O-O {[%clk 0:09:41.4]} 16. f4 {[%clk 0:10:11.3]} 16... f6 {[%clk
0:09:27.3]} 17. g4 {[%clk 0:10:04.4]} 17... f5 {[%clk 0:09:21.9]} 18. g5 {[%clk
0:09:42.3]} 18... h5 {[%clk 0:09:12.4]} 19. h4 {[%clk 0:09:42.6]} 19... g6
{[%clk 0:09:13.9]} 20. Rf3 {[%clk 0:09:34.5]} 20... Bxc3 {[%clk 0:08:55.8]} 21.
Qxc3 {[%clk 0:09:33.4]} 21... Qxc3 {[%clk 0:08:41.1]} 22. Rxc3 {[%clk 0:09:34]}
22... b5 {[%clk 0:08:35.6]} 23. a5 {[%clk 0:09:32.7]} 23... b4 {[%clk 0:08:17]}
24. Re3 {[%clk 0:09:32.1]} 24... Bb5 {[%clk 0:08:14.2]} 25. c3 {[%clk
0:09:32.8]} 25... b3 {[%clk 0:07:58.3]} 26. Nb1 {[%clk 0:09:29]} 26... Rab8
{[%clk 0:07:52]} 27. Na3 {[%clk 0:09:29.4]} 27... Bd7 {[%clk 0:07:51.3]} 28. Nb1
{[%clk 0:09:25.5]} 28... Bb5 {[%clk 0:07:29]} 29. Re1 {[%clk 0:09:26.1]} 29...
Bd7 {[%clk 0:07:19]} 30. Nd2 {[%clk 0:09:27.4]} 1/2-1/2

[Event "Lune-dì-rapid!"]
[Site "Chess.com"]
[Date "2020.04.13"]
[Round "3"]
[White "SanSecondoPR"]
[Black "lucatarozzi"]
[Result "0-1"]
[WhiteElo "1169"]
[BlackElo "1303"]
[TimeControl "720+3"]
[EndTime "6:58:11 PDT"]
[Termination "lucatarozzi ha vinto per abbandono"]

1. e4 {[%clk 0:12:00.1]} 1... e5 {[%clk 0:11:58.6]} 2. d4 {[%clk 0:12:00.7]}
2... exd4 {[%clk 0:11:55.3]} 3. c3 {[%clk 0:12:01.8]} 3... dxc3 {[%clk
0:11:53.3]} 4. Bc4 {[%clk 0:11:57.6]} 4... Qe7 {[%clk 0:11:43]} 5. Nxc3 {[%clk
0:11:57.5]} 5... Nc6 {[%clk 0:11:37.3]} 6. Nf3 {[%clk 0:11:57.1]} 6... Nf6
{[%clk 0:11:34.8]} 7. O-O {[%clk 0:11:56]} 7... Qd8 {[%clk 0:11:31]} 8. e5
{[%clk 0:11:52.8]} 8... Ng8 {[%clk 0:11:22.6]} 9. Qb3 {[%clk 0:11:52.7]} 9... d5
{[%clk 0:10:58.1]} 10. Nxd5 {[%clk 0:11:46.3]} 10... Be6 {[%clk 0:10:59.4]} 11.
Bg5 {[%clk 0:11:38.4]} 11... Nge7 {[%clk 0:10:58.2]} 12. Rad1 {[%clk 0:11:28.6]}
12... Qc8 {[%clk 0:10:45.7]} 13. Nd4 {[%clk 0:11:08.5]} 13... Na5 {[%clk
0:10:42.5]} 14. Qb5+ {[%clk 0:11:00.1]} 14... c6 {[%clk 0:10:43.1]} 15. Qxa5
{[%clk 0:10:52.7]} 15... cxd5 {[%clk 0:10:39.9]} 16. Bb5+ {[%clk 0:10:47.7]}
16... Nc6 {[%clk 0:10:37.8]} 17. Nxc6 {[%clk 0:10:47.4]} 17... bxc6 {[%clk
0:10:38.7]} 18. Rc1 {[%clk 0:10:42.8]} 18... Bd7 {[%clk 0:10:37]} 19. Qc3 {[%clk
0:10:13.6]} 19... cxb5 {[%clk 0:10:21]} 20. Qd4 {[%clk 0:09:56.9]} 20... Qb7
{[%clk 0:10:17.3]} 21. e6 {[%clk 0:09:52.6]} 21... Bxe6 {[%clk 0:10:15.6]} 22.
f4 {[%clk 0:09:44.2]} 22... Qb6 {[%clk 0:10:06]} 23. Qxb6 {[%clk 0:09:32]} 23...
axb6 {[%clk 0:10:07.1]} 24. f5 {[%clk 0:09:33.2]} 24... Bd7 {[%clk 0:10:06.1]}
25. Rfe1+ {[%clk 0:09:32.5]} 25... Be7 {[%clk 0:09:45]} 26. Rxe7+ {[%clk
0:09:32.3]} 26... Kf8 {[%clk 0:09:46.9]} 27. Rxd7 {[%clk 0:09:29]} 27... f6
{[%clk 0:09:48.9]} 28. Bf4 {[%clk 0:09:23.9]} 28... Ke8 {[%clk 0:09:49.8]} 29.
Rcc7 {[%clk 0:09:19.6]} 29... h6 {[%clk 0:09:49.2]} 30. Re7+ {[%clk 0:09:03.2]}
30... Kd8 {[%clk 0:09:47.9]} 31. a3 {[%clk 0:09:01.1]} 31... b4 {[%clk
0:09:42.9]} 32. Bd6 {[%clk 0:08:56.4]} 32... bxa3 {[%clk 0:09:42.5]} 33. bxa3
{[%clk 0:08:49.6]} 33... h5 {[%clk 0:09:38.4]} 34. Rxg7 {[%clk 0:08:46.7]} 34...
h4 {[%clk 0:09:38.4]} 35. Rg6 {[%clk 0:08:42.9]} 35... b5 {[%clk 0:09:37.3]} 36.
Rxf6 {[%clk 0:08:42.6]} 36... b4 {[%clk 0:09:38.6]} 37. Rb7 {[%clk 0:08:09.9]}
37... bxa3 {[%clk 0:09:38.4]} 38. Bxa3 {[%clk 0:08:06.3]} 38... Kc8 {[%clk
0:09:39.6]} 39. Rb3 {[%clk 0:08:02.7]} 39... Re8 {[%clk 0:09:32.5]} 40. Re6
{[%clk 0:07:58]} 40... Rg8 {[%clk 0:09:28.1]} 41. Bb2 {[%clk 0:07:53.9]} 41...
h3 {[%clk 0:09:28.5]} 42. g3 {[%clk 0:07:50.9]} 42... Rf8 {[%clk 0:09:23.8]} 43.
g4 {[%clk 0:07:50.1]} 43... Rg8 {[%clk 0:09:23.9]} 44. Rg6 {[%clk 0:07:46]}
44... Re8 {[%clk 0:09:23.9]} 45. Rc6+ {[%clk 0:07:36.6]} 45... Kd7 {[%clk
0:09:22.9]} 46. Rc1 {[%clk 0:07:21.1]} 46... Re2 {[%clk 0:09:20.4]} 47. Rb7+
{[%clk 0:07:05.6]} 47... Ke8 {[%clk 0:09:18.3]} 48. Bf6 {[%clk 0:06:56.8]} 48...
Rg2+ {[%clk 0:09:14.4]} 49. Kf1 {[%clk 0:06:52.9]} 49... Rxh2 {[%clk 0:09:14.8]}
50. Re1+ {[%clk 0:06:46.3]} 50... Kf8 {[%clk 0:09:11.1]} 51. Be5 {[%clk
0:06:35.5]} 51... Rh1+ {[%clk 0:09:08.8]} 52. Kf2 {[%clk 0:06:28.9]} 52... Ra2+
{[%clk 0:09:10.4]} 53. Re2 {[%clk 0:06:26.8]} 53... Rxe2+ {[%clk 0:09:02.2]} 54.
Kxe2 {[%clk 0:06:24.7]} 54... h2 {[%clk 0:09:04.3]} 55. g5 {[%clk 0:06:11.5]}
55... Re1+ {[%clk 0:09:04.9]} 56. Kxe1 {[%clk 0:06:06.2]} 56... h1=Q+ {[%clk
0:09:06.6]} 57. Kd2 {[%clk 0:05:54.5]} 57... Qg2+ {[%clk 0:09:05.3]} 58. Kc3
{[%clk 0:05:46.9]} 58... d4+ {[%clk 0:09:04.1]} 59. Kxd4 {[%clk 0:05:41.5]}
59... Qxb7 {[%clk 0:09:05.5]} 60. f6 {[%clk 0:05:37.5]} 60... Kf7 {[%clk
0:09:06]} 61. Ke3 {[%clk 0:05:35.1]} 61... Qb3+ {[%clk 0:09:04.1]} 62. Kf4
{[%clk 0:05:34.7]} 62... Qc4+ {[%clk 0:09:03.5]} 63. Kf5 {[%clk 0:05:32.3]}
63... Qd3+ {[%clk 0:09:01.8]} 64. Kf4 {[%clk 0:05:27.5]} 64... Qf1+ {[%clk
0:09:01.6]} 65. Ke4 {[%clk 0:05:23]} 65... Kg6 {[%clk 0:09:02.5]} 66. Bf4 {[%clk
0:05:20.1]} 66... Qb1+ {[%clk 0:08:59.8]} 67. Ke5 {[%clk 0:05:15.5]} 67... Qf5+
{[%clk 0:09:01.2]} 68. Kd6 {[%clk 0:05:09.7]} 68... Qxf4+ {[%clk 0:09:03.1]} 69.
Ke7 {[%clk 0:05:08.6]} 69... Qe5+ {[%clk 0:09:02.9]} 70. Kf8 {[%clk 0:05:07.1]}
70... Kxg5 {[%clk 0:09:02.8]} 0-1

[Event "Lune-dì-rapid!"]
[Site "Chess.com"]
[Date "2020.04.13"]
[Round "3"]
[White "sergiodone"]
[Black "caramante"]
[Result "0-1"]
[WhiteElo "1172"]
[BlackElo "1501"]
[TimeControl "720+3"]
[EndTime "6:59:57 PDT"]
[Termination "caramante ha vinto per abbandono"]

1. e3 {[%clk 0:12:02.9]} 1... c5 {[%clk 0:12:00.6]} 2. e4 {[%clk 0:12:01.3]}
2... d6 {[%clk 0:12:02.4]} 3. h3 {[%clk 0:11:58.9]} 3... Nf6 {[%clk 0:12:04.3]}
4. d3 {[%clk 0:11:53]} 4... Bd7 {[%clk 0:12:05.2]} 5. f4 {[%clk 0:11:42.2]} 5...
Nc6 {[%clk 0:11:59.2]} 6. Nf3 {[%clk 0:11:43.5]} 6... e6 {[%clk 0:12:00.4]} 7.
Nc3 {[%clk 0:11:37.4]} 7... a6 {[%clk 0:12:01.2]} 8. g3 {[%clk 0:11:34.9]} 8...
Be7 {[%clk 0:11:50.5]} 9. Bg2 {[%clk 0:11:36.2]} 9... Qc7 {[%clk 0:11:49.8]} 10.
Qe2 {[%clk 0:11:24.8]} 10... O-O {[%clk 0:11:49.8]} 11. O-O {[%clk 0:11:25.7]}
11... b5 {[%clk 0:11:51.4]} 12. e5 {[%clk 0:11:19.7]} 12... Nh5 {[%clk
0:11:51.6]} 13. Qf2 {[%clk 0:10:57.8]} 13... dxe5 {[%clk 0:11:43.9]} 14. Ne4
{[%clk 0:10:48.5]} 14... exf4 {[%clk 0:11:38.2]} 15. gxf4 {[%clk 0:10:21.3]}
15... Nxf4 {[%clk 0:11:30.8]} 16. Bxf4 {[%clk 0:10:21]} 16... Qxf4 {[%clk
0:11:31.7]} 17. Kh1 {[%clk 0:10:04.5]} 17... Ne5 {[%clk 0:11:19.1]} 18. Nxe5
{[%clk 0:09:58.2]} 18... Qxe5 {[%clk 0:11:18.4]} 19. c3 {[%clk 0:09:39.1]} 19...
Rac8 {[%clk 0:11:14]} 20. Qf4 {[%clk 0:09:37.9]} 20... Qxf4 {[%clk 0:11:08.6]}
21. Rxf4 {[%clk 0:09:38.7]} 21... e5 {[%clk 0:11:05.2]} 22. Rf2 {[%clk
0:09:29.2]} 22... f6 {[%clk 0:11:07.1]} 23. Re2 {[%clk 0:09:00.4]} 23... Rfe8
{[%clk 0:10:58.5]} 24. Rae1 {[%clk 0:08:31.1]} 24... Be6 {[%clk 0:10:56]} 25. b3
{[%clk 0:08:30.4]} 25... Bf5 {[%clk 0:10:47.2]} 26. Rf1 {[%clk 0:08:00.5]} 26...
Bg6 {[%clk 0:10:45.9]} 27. Re3 {[%clk 0:07:23.5]} 27... Red8 {[%clk 0:10:10.2]}
28. Nf2 {[%clk 0:06:21.1]} 28... a5 {[%clk 0:09:55.9]} 29. Be4 {[%clk
0:05:54.1]} 29... Bf7 {[%clk 0:09:46]} 30. Ree1 {[%clk 0:05:43.1]} 30... Kh8
{[%clk 0:09:46.2]} 31. Rd1 {[%clk 0:05:36]} 31... c4 {[%clk 0:09:38]} 32. bxc4
{[%clk 0:05:23.6]} 32... bxc4 {[%clk 0:09:31.5]} 33. Rb1 {[%clk 0:05:18.8]}
33... Bg6 {[%clk 0:09:02.2]} 34. Rb7 {[%clk 0:05:15.3]} 34... Bc5 {[%clk
0:08:57.9]} 35. Bxg6 {[%clk 0:05:10.1]} 35... hxg6 {[%clk 0:08:56]} 36. dxc4
{[%clk 0:04:59.4]} 36... Bxf2 {[%clk 0:08:49.6]} 37. Rxf2 {[%clk 0:05:00.2]}
37... Rd3 {[%clk 0:08:50.9]} 38. Kg2 {[%clk 0:04:43.3]} 38... Rxc3 {[%clk
0:08:50.3]} 39. Rb5 {[%clk 0:04:22.5]} 39... R8xc4 {[%clk 0:08:41.8]} 40. Rxa5
{[%clk 0:04:23.5]} 40... Rh4 {[%clk 0:08:42]} 41. Rf3 {[%clk 0:04:11.5]} 41...
Rxf3 {[%clk 0:08:42.1]} 42. Kxf3 {[%clk 0:04:12.9]} 42... Rxh3+ {[%clk
0:08:43.1]} 43. Kg2 {[%clk 0:04:11.5]} 43... Rd3 {[%clk 0:08:39.8]} 44. a4
{[%clk 0:04:12.7]} 44... Kh7 {[%clk 0:08:40.6]} 45. Rb5 {[%clk 0:04:07.7]} 45...
e4 {[%clk 0:08:40.6]} 46. a5 {[%clk 0:04:08.7]} 46... f5 {[%clk 0:08:42.6]} 47.
Rb4 {[%clk 0:04:03.9]} 47... Ra3 {[%clk 0:08:42.3]} 48. Rb5 {[%clk 0:04:02.4]}
48... Kh6 {[%clk 0:08:38]} 49. Kf2 {[%clk 0:03:41.3]} 49... f4 {[%clk
0:08:31.4]} 50. Re5 {[%clk 0:03:34.6]} 50... e3+ {[%clk 0:08:30.9]} 51. Kf3
{[%clk 0:03:29.9]} 51... g5 {[%clk 0:08:32.7]} 52. Kg4 {[%clk 0:03:21.3]} 52...
g6 {[%clk 0:08:30]} 53. Rxg5 {[%clk 0:03:03.3]} 53... e2 {[%clk 0:08:28.6]} 54.
Re5 {[%clk 0:03:03.2]} 54... Re3 {[%clk 0:08:30.1]} 55. Kxf4 {[%clk 0:02:23.1]}
55... Rxe5 {[%clk 0:08:29.5]} 56. Kxe5 {[%clk 0:02:24.2]} 56... e1=Q+ {[%clk
0:08:29.4]} 0-1

[Event "Lune-dì-rapid!"]
[Site "Chess.com"]
[Date "2020.04.13"]
[Round "3"]
[White "pedrak"]
[Black "BAKR1980"]
[Result "0-1"]
[WhiteElo "1537"]
[BlackElo "1669"]
[TimeControl "720+3"]
[EndTime "7:01:30 PDT"]
[Termination "BAKR1980 ha vinto per abbandono"]

1. d4 {[%clk 0:12:01.1]} 1... Nf6 {[%clk 0:11:58.4]} 2. Nf3 {[%clk 0:12:01.1]}
2... Nc6 {[%clk 0:11:57.3]} 3. c3 {[%clk 0:12:00.2]} 3... d5 {[%clk 0:11:58.8]}
4. h3 {[%clk 0:11:59]} 4... h6 {[%clk 0:11:49.3]} 5. Bf4 {[%clk 0:11:59.3]} 5...
e6 {[%clk 0:11:50]} 6. e3 {[%clk 0:12:00.2]} 6... Bd6 {[%clk 0:11:51.6]} 7. Ne5
{[%clk 0:11:59.1]} 7... Qe7 {[%clk 0:11:48.3]} 8. Nd2 {[%clk 0:11:57.2]} 8...
O-O {[%clk 0:11:49.1]} 9. Bb5 {[%clk 0:11:55.6]} 9... Bd7 {[%clk 0:11:50.1]} 10.
Bd3 {[%clk 0:11:46.5]} 10... Bxe5 {[%clk 0:11:29.1]} 11. dxe5 {[%clk 0:11:38.8]}
11... Nh7 {[%clk 0:11:20.9]} 12. O-O {[%clk 0:11:37.7]} 12... f6 {[%clk
0:11:22.1]} 13. exf6 {[%clk 0:11:33.3]} 13... Nxf6 {[%clk 0:11:20.2]} 14. Bxc7
{[%clk 0:11:29.8]} 14... e5 {[%clk 0:11:14.6]} 15. Bb5 {[%clk 0:11:18.1]} 15...
Bxh3 {[%clk 0:11:00.3]} 16. gxh3 {[%clk 0:10:40.7]} 16... Qxc7 {[%clk
0:10:57.8]} 17. f4 {[%clk 0:09:39.6]} 17... exf4 {[%clk 0:10:41.9]} 18. Rxf4
{[%clk 0:09:34.7]} 18... Ne4 {[%clk 0:10:13.1]} 19. Nxe4 {[%clk 0:09:17.2]}
19... Rxf4 {[%clk 0:10:04.4]} 20. exf4 {[%clk 0:09:17.8]} 20... dxe4 {[%clk
0:10:04.2]} 21. Qd5+ {[%clk 0:09:15.6]} 21... Kh8 {[%clk 0:10:03.8]} 22. Qxe4
{[%clk 0:09:16.9]} 22... Qb6+ {[%clk 0:10:05.5]} 23. Kh2 {[%clk 0:09:03.8]}
23... Qxb5 {[%clk 0:10:05.1]} 24. b3 {[%clk 0:09:04.3]} 24... Rd8 {[%clk
0:10:02]} 25. Qe3 {[%clk 0:09:00]} 25... Qf5 {[%clk 0:09:54.6]} 26. Re1 {[%clk
0:08:34.7]} 26... Rf8 {[%clk 0:09:23.6]} 27. Kg3 {[%clk 0:08:20.4]} 27... Qg6+
{[%clk 0:09:10.6]} 28. Kh2 {[%clk 0:08:15.7]} 28... Rd8 {[%clk 0:08:52.7]} 29.
Rg1 {[%clk 0:07:08.3]} 29... Qd3 {[%clk 0:08:32.1]} 30. Qxd3 {[%clk 0:05:55.8]}
30... Rxd3 {[%clk 0:08:30.4]} 31. c4 {[%clk 0:05:45.8]} 31... Nd4 {[%clk
0:08:29.4]} 32. Rg3 {[%clk 0:05:11.7]} 32... Rd2+ {[%clk 0:07:20]} 33. Rg2
{[%clk 0:05:12.2]} 33... Rxg2+ {[%clk 0:06:43.3]} 34. Kxg2 {[%clk 0:05:13.4]}
34... Ne2 {[%clk 0:06:43.5]} 35. Kf3 {[%clk 0:05:05.7]} 35... Nc1 {[%clk
0:06:42.3]} 36. Ke4 {[%clk 0:05:06.6]} 36... Nxa2 {[%clk 0:06:41]} 37. Kd5
{[%clk 0:05:08.5]} 37... Nc1 {[%clk 0:06:38.9]} 38. b4 {[%clk 0:05:10]} 38...
Kg8 {[%clk 0:06:34.7]} 39. Kd6 {[%clk 0:05:11.3]} 39... Nd3 {[%clk 0:06:34.5]}
40. b5 {[%clk 0:05:10.5]} 40... Nxf4 {[%clk 0:06:35]} 41. Kc7 {[%clk 0:05:12.5]}
41... a5 {[%clk 0:06:26.8]} 42. bxa6 {[%clk 0:05:13.8]} 42... bxa6 {[%clk
0:06:28.1]} 43. Kb6 {[%clk 0:05:16.1]} 43... a5 {[%clk 0:06:24.4]} 44. Kxa5
{[%clk 0:05:17.5]} 44... Nd3 {[%clk 0:06:26]} 45. Kb6 {[%clk 0:05:11.9]} 45...
h5 {[%clk 0:06:27.2]} 46. Kc6 {[%clk 0:05:13.9]} 46... g5 {[%clk 0:06:28.4]} 47.
Kd5 {[%clk 0:05:15.7]} 47... Kf7 {[%clk 0:06:23.2]} 48. Ke4 {[%clk 0:05:15.3]}
48... Nc5+ {[%clk 0:06:24.1]} 49. Kf5 {[%clk 0:05:17.1]} 49... Ne6 {[%clk
0:06:14.9]} 50. c5 {[%clk 0:05:17.5]} 50... Ke7 {[%clk 0:06:06.1]} 51. c6 {[%clk
0:05:15.1]} 51... Kd6 {[%clk 0:05:52.8]} 52. c7 {[%clk 0:05:14.9]} 52... Kxc7
{[%clk 0:05:53.1]} 53. Ke4 {[%clk 0:04:28]} 53... Kd6 {[%clk 0:05:50.3]} 54. Kf3
{[%clk 0:04:29.2]} 54... Ke5 {[%clk 0:05:41.7]} 55. Kg3 {[%clk 0:04:30.3]} 55...
Kf5 {[%clk 0:05:40.4]} 56. Kf3 {[%clk 0:04:31.6]} 56... Nd4+ {[%clk 0:05:40.4]}
57. Kg3 {[%clk 0:04:33.1]} 57... Ne2+ {[%clk 0:05:41]} 58. Kf3 {[%clk
0:04:34.5]} 58... Ng1+ {[%clk 0:05:42.1]} 59. Kg3 {[%clk 0:04:35.8]} 59... Nxh3
{[%clk 0:05:42.2]} 60. Kxh3 {[%clk 0:04:37.5]} 60... Kf4 {[%clk 0:05:44.1]} 61.
Kg2 {[%clk 0:04:38.8]} 61... g4 {[%clk 0:05:44.3]} 62. Kh2 {[%clk 0:04:40]}
62... Kf3 {[%clk 0:05:44.7]} 63. Kg1 {[%clk 0:04:41.1]} 63... h4 {[%clk
0:05:44.8]} 64. Kh2 {[%clk 0:04:42.8]} 64... Kf2 {[%clk 0:05:43.8]} 65. Kh1
{[%clk 0:04:44.3]} 65... h3 {[%clk 0:05:41]} 66. Kh2 {[%clk 0:04:43.9]} 66...
g3+ {[%clk 0:05:42.3]} 0-1

[Event "Lune-dì-rapid!"]
[Site "Chess.com"]
[Date "2020.04.13"]
[Round "4"]
[White "sirmale49"]
[Black "Delsoldato03"]
[Result "0-1"]
[WhiteElo "1356"]
[BlackElo "1255"]
[TimeControl "720+3"]
[EndTime "7:11:16 PDT"]
[Termination "Delsoldato03 ha vinto per abbandono"]

1. f4 {[%clk 0:12:02.9]} 1... d5 {[%clk 0:11:58.9]} 2. Nf3 {[%clk 0:11:59.6]}
2... Nc6 {[%clk 0:11:57.1]} 3. g3 {[%clk 0:12:00.4]} 3... Nf6 {[%clk 0:11:51]}
4. Bg2 {[%clk 0:11:58.9]} 4... Bg4 {[%clk 0:11:45.1]} 5. e3 {[%clk 0:11:58.6]}
5... e5 {[%clk 0:11:34.6]} 6. h3 {[%clk 0:11:57.9]} 6... Bxf3 {[%clk 0:11:27.2]}
7. Bxf3 {[%clk 0:11:57.8]} 7... exf4 {[%clk 0:11:16.2]} 8. exf4 {[%clk
0:11:53.6]} 8... Qe7+ {[%clk 0:11:13.1]} 9. Qe2 {[%clk 0:11:41.5]} 9... Qxe2+
{[%clk 0:11:10.8]} 10. Kxe2 {[%clk 0:11:42.2]} 10... O-O-O {[%clk 0:11:04.6]}
11. c3 {[%clk 0:11:29.5]} 11... Ne4 {[%clk 0:10:56.3]} 12. Bxe4 {[%clk
0:11:29.2]} 12... dxe4 {[%clk 0:10:57.7]} 13. Re1 {[%clk 0:11:04]} 13... Bc5
{[%clk 0:10:48.5]} 14. Na3 {[%clk 0:11:00.2]} 14... f5 {[%clk 0:10:29.9]} 15.
Nc4 {[%clk 0:10:59.8]} 15... Rd3 {[%clk 0:10:14.8]} 16. Ne3 {[%clk 0:10:46.8]}
16... g6 {[%clk 0:09:55.2]} 17. b4 {[%clk 0:10:46.2]} 17... Bb6 {[%clk
0:09:49.2]} 18. a4 {[%clk 0:10:43.8]} 18... a5 {[%clk 0:09:40.7]} 19. b5 {[%clk
0:10:45.1]} 19... Ne7 {[%clk 0:09:32.3]} 20. Bb2 {[%clk 0:10:42.6]} 20... Rhd8
{[%clk 0:09:26.2]} 21. Rad1 {[%clk 0:10:39.7]} 21... Nd5 {[%clk 0:09:08.9]} 22.
Nc4 {[%clk 0:10:04.3]} 22... Rxg3 {[%clk 0:08:52.7]} 23. Nxb6+ {[%clk 0:10:04]}
23... Nxb6 {[%clk 0:08:50.6]} 24. Kf2 {[%clk 0:09:06.2]} 24... Rxh3 {[%clk
0:08:38]} 25. Rh1 {[%clk 0:09:00.6]} 25... Rxh1 {[%clk 0:08:33.4]} 0-1

[Event "Lune-dì-rapid!"]
[Site "Chess.com"]
[Date "2020.04.13"]
[Round "4"]
[White "BAKR1980"]
[Black "crippo"]
[Result "0-1"]
[WhiteElo "1556"]
[BlackElo "1612"]
[TimeControl "720+3"]
[EndTime "7:11:33 PDT"]
[Termination "crippo ha vinto per abbandono"]

1. e4 {[%clk 0:12:02.9]} 1... e5 {[%clk 0:12:01.9]} 2. Nf3 {[%clk 0:12:03.8]}
2... d6 {[%clk 0:12:03.3]} 3. Bc4 {[%clk 0:12:03.7]} 3... Be7 {[%clk 0:12:05.2]}
4. Nc3 {[%clk 0:11:59.5]} 4... Nf6 {[%clk 0:12:06.9]} 5. d3 {[%clk 0:11:55.7]}
5... O-O {[%clk 0:12:07.8]} 6. Bg5 {[%clk 0:11:54.2]} 6... Bg4 {[%clk 0:12:07]}
7. h3 {[%clk 0:11:43.1]} 7... Bh5 {[%clk 0:12:05.8]} 8. g4 {[%clk 0:11:36.9]}
8... Bg6 {[%clk 0:12:07.7]} 9. Qd2 {[%clk 0:11:38]} 9... h6 {[%clk 0:12:08]} 10.
Be3 {[%clk 0:11:33.3]} 10... Nc6 {[%clk 0:12:08.1]} 11. g5 {[%clk 0:11:33]}
11... hxg5 {[%clk 0:12:06.6]} 12. Nxg5 {[%clk 0:11:26.8]} 12... Nd4 {[%clk
0:11:57.8]} 13. O-O-O {[%clk 0:11:15.1]} 13... c6 {[%clk 0:11:57]} 14. Rdg1
{[%clk 0:10:47.4]} 14... a5 {[%clk 0:11:55.9]} 15. Bxd4 {[%clk 0:10:36.7]} 15...
exd4 {[%clk 0:11:56.5]} 16. Ne2 {[%clk 0:10:36.1]} 16... b5 {[%clk 0:11:47.9]}
17. Nf3 {[%clk 0:10:26.1]} 17... bxc4 {[%clk 0:11:45.6]} 18. dxc4 {[%clk
0:10:08.9]} 18... Nxe4 {[%clk 0:11:43.6]} 19. Qxd4 {[%clk 0:10:09.4]} 19... Bf6
{[%clk 0:11:45.1]} 20. Qe3 {[%clk 0:09:53.3]} 20... Re8 {[%clk 0:10:58.7]} 21.
Qf4 {[%clk 0:09:41.8]} 21... Qb6 {[%clk 0:10:47.6]} 22. c3 {[%clk 0:09:08.1]}
22... Nxf2 {[%clk 0:10:41.2]} 23. Qd2 {[%clk 0:08:51.9]} 23... Nxh1 {[%clk
0:10:36]} 24. Rxh1 {[%clk 0:08:52.8]} 24... Qf2 {[%clk 0:10:34.5]} 25. Nfd4
{[%clk 0:08:48.3]} 25... Bxd4 {[%clk 0:10:32]} 26. Nxd4 {[%clk 0:08:49.3]} 26...
Qxd2+ {[%clk 0:10:28.9]} 27. Kxd2 {[%clk 0:08:50.8]} 27... c5 {[%clk 0:10:30.8]}
28. Nb5 {[%clk 0:08:44.7]} 28... Rad8 {[%clk 0:10:26.3]} 29. h4 {[%clk
0:08:39.6]} 29... Bh5 {[%clk 0:10:26.5]} 30. Nc7 {[%clk 0:08:30.9]} 30... Re2+
{[%clk 0:10:26.1]} 31. Kc1 {[%clk 0:08:32.7]} 31... Bg6 {[%clk 0:10:22.5]} 32.
Nd5 {[%clk 0:08:31.4]} 32... Rc2+ {[%clk 0:10:19.9]} 33. Kd1 {[%clk 0:08:28]}
33... Rxb2 {[%clk 0:10:21.4]} 34. Re1 {[%clk 0:08:17.1]} 34... Rb1+ {[%clk
0:10:22.5]} 35. Kd2 {[%clk 0:08:18.4]} 35... Rxe1 {[%clk 0:10:24]} 36. Kxe1
{[%clk 0:08:20.3]} 36... Bd3 {[%clk 0:10:24.5]} 37. Ne3 {[%clk 0:08:19.1]} 37...
Re8 {[%clk 0:10:24.6]} 38. Kd2 {[%clk 0:08:21.3]} 38... Rxe3 {[%clk 0:10:23]}
39. Kxe3 {[%clk 0:08:22.6]} 39... Bxc4 {[%clk 0:10:24.9]} 40. Ke4 {[%clk
0:08:23.9]} 40... Bxa2 {[%clk 0:10:25.9]} 0-1

[Event "Lune-dì-rapid!"]
[Site "Chess.com"]
[Date "2020.04.13"]
[Round "4"]
[White "caramante"]
[Black "pedrak"]
[Result "0-1"]
[WhiteElo "1454"]
[BlackElo "1619"]
[TimeControl "720+3"]
[EndTime "7:13:30 PDT"]
[Termination "pedrak ha vinto per abbandono"]

1. Nf3 {[%clk 0:12:02.9]} 1... d5 {[%clk 0:12:01.2]} 2. d4 {[%clk 0:12:04.6]}
2... c6 {[%clk 0:12:01.7]} 3. g3 {[%clk 0:12:06.3]} 3... Bf5 {[%clk 0:12:02.4]}
4. Bg2 {[%clk 0:12:07.9]} 4... e6 {[%clk 0:12:04.3]} 5. c3 {[%clk 0:12:09.9]}
5... Nf6 {[%clk 0:12:05.9]} 6. Nbd2 {[%clk 0:12:10.4]} 6... Bd6 {[%clk 0:12:07]}
7. O-O {[%clk 0:12:11.9]} 7... O-O {[%clk 0:12:08.3]} 8. h3 {[%clk 0:12:13.6]}
8... h6 {[%clk 0:12:10.1]} 9. Re1 {[%clk 0:12:12.9]} 9... Ne4 {[%clk 0:12:11]}
10. Nh4 {[%clk 0:12:10.3]} 10... Nd7 {[%clk 0:12:05]} 11. Nxf5 {[%clk
0:12:10.5]} 11... exf5 {[%clk 0:12:06.6]} 12. Nf3 {[%clk 0:12:07.8]} 12... Qe7
{[%clk 0:12:04.1]} 13. Nh4 {[%clk 0:11:54.7]} 13... Qf6 {[%clk 0:11:36.4]} 14.
Qd3 {[%clk 0:11:41.8]} 14... Rfe8 {[%clk 0:10:43.6]} 15. f4 {[%clk 0:11:32]}
15... g5 {[%clk 0:09:50.8]} 16. fxg5 {[%clk 0:11:28.6]} 16... hxg5 {[%clk
0:09:52]} 17. Nf3 {[%clk 0:11:28.7]} 17... Bxg3 {[%clk 0:09:18.8]} 18. Rf1
{[%clk 0:11:28]} 18... f4 {[%clk 0:09:03.1]} 19. Bd2 {[%clk 0:11:17.2]} 19...
Nxd2 {[%clk 0:08:02.6]} 20. Nxd2 {[%clk 0:11:08.7]} 20... Re3 {[%clk 0:08:01]}
21. Qc2 {[%clk 0:10:45]} 21... Rxe2 {[%clk 0:07:52.8]} 22. Bf3 {[%clk
0:10:26.5]} 22... Re3 {[%clk 0:07:06.9]} 23. Bg4 {[%clk 0:10:28.2]} 23... Nf8
{[%clk 0:06:56.6]} 24. Nf3 {[%clk 0:10:24.4]} 24... Rae8 {[%clk 0:06:52.7]} 25.
Ne5 {[%clk 0:10:24.6]} 25... Ng6 {[%clk 0:06:51.2]} 26. Rf3 {[%clk 0:09:54.6]}
26... Nxe5 {[%clk 0:06:36.5]} 27. Rxe3 {[%clk 0:09:49.6]} 27... fxe3 {[%clk
0:06:37.2]} 28. Rf1 {[%clk 0:09:49.5]} 28... Bf2+ {[%clk 0:06:35.5]} 29. Kh1
{[%clk 0:09:41.2]} 29... Nxg4 {[%clk 0:06:36.7]} 30. hxg4 {[%clk 0:09:38.5]}
30... Qf3+ {[%clk 0:06:32.3]} 31. Kh2 {[%clk 0:09:37.9]} 31... Qg3+ {[%clk
0:06:33.8]} 32. Kh1 {[%clk 0:09:38.4]} 32... Kg7 {[%clk 0:06:35.3]} 0-1